[Event "*** Titled Tuesday Blitz"]
[Site "Chess.com"]
[Date "2020.10.27"]
[Round "3"]
[White "Evachess2006"]
[Black "Kaslask"]
[Result "0-1"]
[WhiteElo "1622"]
[BlackElo "2361"]
[TimeControl "180+1"]
[EndTime "10:27:42 PDT"]
[Termination "Kaslask won by resignation"]

1. e4 {[%clk 0:02:53.4]} 1... c5 {[%clk 0:02:58.4]} 2. c3 {[%clk 0:02:43.8]}
2... e6 {[%clk 0:02:57]} 3. d4 {[%clk 0:02:41.8]} 3... d5 {[%clk 0:02:56.9]} 4.
exd5 {[%clk 0:02:36.6]} 4... Qxd5 {[%clk 0:02:55.5]} 5. dxc5 {[%clk 0:02:37.5]}
5... Qxd1+ {[%clk 0:02:52.8]} 6. Kxd1 {[%clk 0:02:37.3]} 6... Bxc5 {[%clk
0:02:52.4]} 7. Be3 {[%clk 0:02:37.6]} 7... Bxe3 {[%clk 0:02:50.6]} 8. fxe3
{[%clk 0:02:38.5]} 8... Nf6 {[%clk 0:02:49.8]} 9. Nf3 {[%clk 0:02:25.6]} 9...
Nc6 {[%clk 0:02:38.5]} 10. Bd3 {[%clk 0:02:23.6]} 10... b6 {[%clk 0:02:30.6]}
11. Ke2 {[%clk 0:02:24.5]} 11... Bb7 {[%clk 0:02:30.4]} 12. Kd1 {[%clk
0:02:25.4]} 12... O-O-O {[%clk 0:02:29.9]} 13. Ke2 {[%clk 0:02:23.8]} 13... Nd5
{[%clk 0:02:28.6]} 14. Rd1 {[%clk 0:02:22.7]} 14... h6 {[%clk 0:02:21.4]} 15.
Nbd2 {[%clk 0:02:22.9]} 15... f5 {[%clk 0:02:20.4]} 16. Bc2 {[%clk 0:02:11]}
16... f4 {[%clk 0:02:18.1]} 17. exf4 {[%clk 0:02:09.5]} 17... Nxf4+ {[%clk
0:02:17.2]} 18. Kf2 {[%clk 0:02:03.2]} 18... Nd3+ {[%clk 0:02:14.6]} 19. Bxd3
{[%clk 0:01:54.4]} 19... Rxd3 {[%clk 0:02:14.1]} 20. Nc4 {[%clk 0:01:54.2]}
20... Rhd8 {[%clk 0:02:08.1]} 21. Re1 {[%clk 0:01:49.5]} 21... e5 {[%clk
0:01:57.7]} 22. Ncxe5 {[%clk 0:01:43]} 22... Nxe5 {[%clk 0:01:56.9]} 23. Rxe5
{[%clk 0:01:42.1]} 23... Bxf3 {[%clk 0:01:53.4]} 24. gxf3 {[%clk 0:01:39.7]}
24... Rf8 {[%clk 0:01:53]} 25. Re3 {[%clk 0:01:38]} 25... Rd2+ {[%clk
0:01:48.5]} 26. Re2 {[%clk 0:01:37]} 26... Rd3 {[%clk 0:01:46.4]} 27. Re3 {[%clk
0:01:36]} 27... Rd5 {[%clk 0:01:41.8]} 28. Rg1 {[%clk 0:01:24.8]} 28... Rf7
{[%clk 0:01:39.9]} 29. Rg6 {[%clk 0:01:14.5]} 29... Kd7 {[%clk 0:01:37]} 30. c4
{[%clk 0:01:08.1]} 30... Rh5 {[%clk 0:01:34.3]} 31. Rg2 {[%clk 0:01:06]} 31...
Rc5 {[%clk 0:01:31.3]} 32. Rd3+ {[%clk 0:01:02.8]} 32... Kc7 {[%clk 0:01:29.9]}
33. b3 {[%clk 0:01:02.7]} 33... g5 {[%clk 0:01:25.2]} 34. Rg4 {[%clk 0:00:56.5]}
34... Rcf5 {[%clk 0:01:22.7]} 35. Re4 {[%clk 0:00:47.5]} 35... Kb7 {[%clk
0:01:18.5]} 36. h3 {[%clk 0:00:46.3]} 36... h5 {[%clk 0:01:16.6]} 37. Kg3 {[%clk
0:00:45.5]} 37... Ka6 {[%clk 0:01:13.4]} 38. Ree3 {[%clk 0:00:41.2]} 38... Ka5
{[%clk 0:01:13.2]} 39. Rd2 {[%clk 0:00:39.5]} 39... Kb4 {[%clk 0:01:12.9]} 40.
Rde2 {[%clk 0:00:38.9]} 40... R7f6 {[%clk 0:01:08.9]} 41. Rf2 {[%clk 0:00:39]}
41... g4 {[%clk 0:01:07.1]} 42. hxg4 {[%clk 0:00:36]} 42... hxg4 {[%clk
0:01:06.9]} 43. Kxg4 {[%clk 0:00:35.7]} 43... Rf8 {[%clk 0:01:05.1]} 44. Re7
{[%clk 0:00:30.9]} 44... a5 {[%clk 0:01:02.8]} 45. Rb7 {[%clk 0:00:28.3]} 45...
Rf4+ {[%clk 0:01:01.1]} 46. Kg3 {[%clk 0:00:27.2]} 46... R4f6 {[%clk 0:01:01]}
47. Re7 {[%clk 0:00:24.1]} 47... Rg6+ {[%clk 0:00:59.9]} 0-1

[Event "*** Titled Tuesday Blitz"]
[Site "Chess.com"]
[Date "2020.10.27"]
[Round "3"]
[White "RD4ever"]
[Black "AleksanderHnydiuk"]
[Result "1-0"]
[WhiteElo "2798"]
[BlackElo "2534"]
[TimeControl "180+1"]
[EndTime "10:27:43 PDT"]
[Termination "RD4ever won on time"]

1. e4 {[%clk 0:03:00.9]} 1... e5 {[%clk 0:02:59.7]} 2. Nf3 {[%clk 0:03:01.1]}
2... Nf6 {[%clk 0:02:59.9]} 3. Nc3 {[%clk 0:03:01.4]} 3... Nc6 {[%clk
0:02:59.6]} 4. Bb5 {[%clk 0:03:01.9]} 4... Nd4 {[%clk 0:02:57.8]} 5. Bc4 {[%clk
0:03:02]} 5... Bc5 {[%clk 0:02:51.6]} 6. d3 {[%clk 0:03:02.2]} 6... d6 {[%clk
0:02:40.3]} 7. Na4 {[%clk 0:03:00.7]} 7... Bg4 {[%clk 0:02:05.6]} 8. Nxc5 {[%clk
0:02:52.2]} 8... Bxf3 {[%clk 0:02:05.5]} 9. gxf3 {[%clk 0:02:46.7]} 9... dxc5
{[%clk 0:02:05.4]} 10. c3 {[%clk 0:02:36.7]} 10... Ne6 {[%clk 0:02:01]} 11. Qb3
{[%clk 0:02:35.6]} 11... Qc8 {[%clk 0:01:51]} 12. Rg1 {[%clk 0:02:31.3]} 12...
Nh5 {[%clk 0:01:45.2]} 13. Bxe6 {[%clk 0:02:24.3]} 13... fxe6 {[%clk 0:01:43]}
14. Rg5 {[%clk 0:02:23.8]} 14... g6 {[%clk 0:01:29.5]} 15. Rxe5 {[%clk
0:02:23.2]} 15... O-O {[%clk 0:01:24.1]} 16. Rxe6 {[%clk 0:02:11.4]} 16... Kh8
{[%clk 0:01:23.9]} 17. Be3 {[%clk 0:02:11.2]} 17... Rxf3 {[%clk 0:01:18.1]} 18.
Bxc5 {[%clk 0:02:01.6]} 18... Rxd3 {[%clk 0:00:58.5]} 19. Rd1 {[%clk 0:01:15.2]}
19... Rxd1+ {[%clk 0:00:56]} 20. Kxd1 {[%clk 0:01:16.1]} 20... Qd7+ {[%clk
0:00:31.6]} 21. Bd4+ {[%clk 0:00:41.5]} 21... Ng7 {[%clk 0:00:30.5]} 22. Qd5
{[%clk 0:00:42.1]} 22... Qf7 {[%clk 0:00:08.7]} 23. Qe5 {[%clk 0:00:36.4]} 23...
Rd8 {[%clk 0:00:05.3]} 24. Re7 {[%clk 0:00:23.3]} 24... Rxd4+ {[%clk 0:00:05.1]}
25. cxd4 {[%clk 0:00:21.9]} 25... Qf3+ {[%clk 0:00:05.5]} 26. Kc1 {[%clk
0:00:19.3]} 1-0

[Event "*** Titled Tuesday Blitz"]
[Site "Chess.com"]
[Date "2020.10.27"]
[Round "3"]
[White "Kazakov_Konstantin"]
[Black "ASVZ"]
[Result "0-1"]
[WhiteElo "2682"]
[BlackElo "2448"]
[TimeControl "180+1"]
[EndTime "10:27:43 PDT"]
[Termination "ASVZ won by resignation"]

1. e4 {[%clk 0:03:00.5]} 1... e6 {[%clk 0:02:59.9]} 2. d4 {[%clk 0:02:56.8]}
2... d5 {[%clk 0:03:00.5]} 3. Nd2 {[%clk 0:02:57.3]} 3... Nc6 {[%clk 0:02:59.8]}
4. Ngf3 {[%clk 0:02:56.5]} 4... Nf6 {[%clk 0:03:00.3]} 5. e5 {[%clk 0:02:56.2]}
5... Nd7 {[%clk 0:03:01]} 6. Nb3 {[%clk 0:02:53.9]} 6... a5 {[%clk 0:03:00.3]}
7. a4 {[%clk 0:02:53.1]} 7... f6 {[%clk 0:03:00.9]} 8. Bb5 {[%clk 0:02:52.2]}
8... fxe5 {[%clk 0:02:59.2]} 9. dxe5 {[%clk 0:02:42.6]} 9... Be7 {[%clk
0:02:59.2]} 10. Nbd4 {[%clk 0:02:31]} 10... Ndb8 {[%clk 0:02:47.9]} 11. O-O
{[%clk 0:02:26.5]} 11... O-O {[%clk 0:02:47.7]} 12. c3 {[%clk 0:02:25.5]} 12...
Nxd4 {[%clk 0:02:44.4]} 13. cxd4 {[%clk 0:02:25.3]} 13... c5 {[%clk 0:02:44.1]}
14. Be3 {[%clk 0:02:19.7]} 14... c4 {[%clk 0:02:43]} 15. b3 {[%clk 0:02:17.2]}
15... cxb3 {[%clk 0:02:36.5]} 16. Be2 {[%clk 0:02:05.7]} 16... b2 {[%clk
0:02:35.1]} 17. Ra2 {[%clk 0:02:05.1]} 17... Nc6 {[%clk 0:02:26.9]} 18. Rxb2
{[%clk 0:02:02.9]} 18... Nb4 {[%clk 0:02:27.3]} 19. Qb3 {[%clk 0:01:56.4]} 19...
Bd7 {[%clk 0:02:27.3]} 20. Nd2 {[%clk 0:01:46.6]} 20... Qe8 {[%clk 0:02:26.6]}
21. Ra1 {[%clk 0:01:44]} 21... Rc8 {[%clk 0:02:26.3]} 22. h3 {[%clk 0:01:27.7]}
22... Qg6 {[%clk 0:02:26.3]} 23. Kh2 {[%clk 0:01:25.6]} 23... Nc2 {[%clk
0:02:17.9]} 24. Rf1 {[%clk 0:01:21.4]} 24... Bb4 {[%clk 0:02:09.8]} 25. Bd3
{[%clk 0:01:18.2]} 25... Nxe3 {[%clk 0:02:08.5]} 26. Bxg6 {[%clk 0:01:04.9]}
26... Nxf1+ {[%clk 0:02:08.8]} 27. Nxf1 {[%clk 0:01:04.5]} 27... hxg6 {[%clk
0:02:09.7]} 28. Qg3 {[%clk 0:01:00.4]} 28... Kh7 {[%clk 0:02:01.7]} 29. Ne3
{[%clk 0:00:57.8]} 29... Bxa4 {[%clk 0:01:58.2]} 30. Qh4+ {[%clk 0:00:57]} 30...
Kg8 {[%clk 0:01:57.3]} 31. Qg4 {[%clk 0:00:57.9]} 31... Kf7 {[%clk 0:01:54.4]}
32. Qf4+ {[%clk 0:00:34.8]} 32... Kg8 {[%clk 0:01:54]} 33. Qg5 {[%clk
0:00:34.4]} 33... Kh7 {[%clk 0:01:50.5]} 34. Ng4 {[%clk 0:00:33.5]} 34... Rf5
{[%clk 0:01:44.4]} 35. Qh4+ {[%clk 0:00:33.3]} 35... Rh5 {[%clk 0:01:44.6]} 36.
Qg3 {[%clk 0:00:33.4]} 36... Rc3 {[%clk 0:01:39.8]} 37. Qf4 {[%clk 0:00:31.6]}
37... Rf5 {[%clk 0:01:35.7]} 38. Nf6+ {[%clk 0:00:13.1]} 38... gxf6 {[%clk
0:01:32.9]} 39. Qh4+ {[%clk 0:00:13.5]} 39... Kg7 {[%clk 0:01:31.9]} 40. exf6+
{[%clk 0:00:14.4]} 40... Rxf6 {[%clk 0:01:32.8]} 41. Re2 {[%clk 0:00:14.3]}
41... Bd6+ {[%clk 0:01:20.5]} 42. g3 {[%clk 0:00:14.5]} 42... Bd1 {[%clk
0:01:08.6]} 43. Rd2 {[%clk 0:00:10.3]} 43... Bf3 {[%clk 0:01:07.9]} 0-1

[Event "*** Titled Tuesday Blitz"]
[Site "Chess.com"]
[Date "2020.10.27"]
[Round "3"]
[White "Ind1anStar"]
[Black "winniethepooh04"]
[Result "1-0"]
[WhiteElo "2409"]
[BlackElo "2197"]
[TimeControl "180+1"]
[EndTime "10:27:45 PDT"]
[Termination "Ind1anStar won on time"]

1. d4 {[%clk 0:03:00.9]} 1... Nf6 {[%clk 0:02:56.3]} 2. Nf3 {[%clk 0:03:01.2]}
2... g6 {[%clk 0:02:47.5]} 3. Bf4 {[%clk 0:03:01.7]} 3... Bg7 {[%clk 0:02:45.2]}
4. e3 {[%clk 0:03:02.2]} 4... O-O {[%clk 0:02:45]} 5. h3 {[%clk 0:03:02.8]} 5...
d6 {[%clk 0:02:43.4]} 6. Be2 {[%clk 0:03:03.3]} 6... a6 {[%clk 0:02:42.7]} 7. c4
{[%clk 0:03:00.5]} 7... Qe8 {[%clk 0:02:42.7]} 8. O-O {[%clk 0:03:00.1]} 8...
Nbd7 {[%clk 0:02:38.4]} 9. Nc3 {[%clk 0:02:58.9]} 9... c6 {[%clk 0:02:29.3]} 10.
Rc1 {[%clk 0:02:56.9]} 10... Nh5 {[%clk 0:02:16.8]} 11. Bh2 {[%clk 0:02:56.7]}
11... e5 {[%clk 0:02:16.8]} 12. b4 {[%clk 0:02:47.9]} 12... e4 {[%clk
0:01:47.3]} 13. Nd2 {[%clk 0:02:47.6]} 13... d5 {[%clk 0:01:46]} 14. Bxh5 {[%clk
0:02:38.3]} 14... gxh5 {[%clk 0:01:43]} 15. cxd5 {[%clk 0:02:38.9]} 15... f5
{[%clk 0:01:38.8]} 16. dxc6 {[%clk 0:02:37.2]} 16... bxc6 {[%clk 0:01:38.5]} 17.
Nc4 {[%clk 0:02:30.6]} 17... Qg6 {[%clk 0:01:33.7]} 18. d5 {[%clk 0:02:20.5]}
18... Bb7 {[%clk 0:01:19.1]} 19. Na5 {[%clk 0:02:15.3]} 19... Bc8 {[%clk
0:01:06.7]} 20. dxc6 {[%clk 0:02:11.3]} 20... Nf6 {[%clk 0:00:50.3]} 21. Kh1
{[%clk 0:01:37.4]} 21... h4 {[%clk 0:00:45.8]} 22. c7 {[%clk 0:01:36.2]} 22...
Nh5 {[%clk 0:00:41.2]} 23. Nd5 {[%clk 0:01:36.1]} 23... Qg5 {[%clk 0:00:29.6]}
24. Bf4 {[%clk 0:01:23.4]} 24... Nxf4 {[%clk 0:00:26]} 25. exf4 {[%clk
0:01:24.3]} 25... Qh6 {[%clk 0:00:21]} 26. Rc6 {[%clk 0:01:24.2]} 26... Be6
{[%clk 0:00:15.3]} 27. Ne7+ {[%clk 0:01:18]} 27... Kh8 {[%clk 0:00:13.9]} 28.
Qd6 {[%clk 0:01:16.6]} 28... Rf6 {[%clk 0:00:12.7]} 29. Qc5 {[%clk 0:00:54.7]}
29... Bd7 {[%clk 0:00:10.6]} 30. Rxf6 {[%clk 0:00:52.3]} 30... Bxf6 {[%clk
0:00:09.7]} 31. Qd5 {[%clk 0:00:44.1]} 31... Qxf4 {[%clk 0:00:08.3]} 32. Qxa8+
{[%clk 0:00:43.6]} 32... Kg7 {[%clk 0:00:07.5]} 33. Qg8+ {[%clk 0:00:39.9]}
33... Kh6 {[%clk 0:00:07.8]} 34. Nd5 {[%clk 0:00:38.3]} 1-0

[Event "*** Titled Tuesday Blitz"]
[Site "Chess.com"]
[Date "2020.10.27"]
[Round "3"]
[White "Witik"]
[Black "witcher8"]
[Result "1-0"]
[WhiteElo "2699"]
[BlackElo "2434"]
[TimeControl "180+1"]
[EndTime "10:27:46 PDT"]
[Termination "Witik won by resignation"]

1. e4 {[%clk 0:02:55.6]} 1... c6 {[%clk 0:02:59.6]} 2. d4 {[%clk 0:02:54.8]}
2... d5 {[%clk 0:03:00.5]} 3. e5 {[%clk 0:02:54.9]} 3... Bf5 {[%clk 0:02:58.8]}
4. h4 {[%clk 0:02:54.6]} 4... Qb6 {[%clk 0:02:57.9]} 5. Nc3 {[%clk 0:02:45.8]}
5... h5 {[%clk 0:02:55.7]} 6. Nge2 {[%clk 0:02:16.2]} 6... e6 {[%clk 0:02:53.4]}
7. Ng3 {[%clk 0:02:08]} 7... Bg6 {[%clk 0:02:45.3]} 8. Nce2 {[%clk 0:02:03]}
8... c5 {[%clk 0:02:24.2]} 9. Nf4 {[%clk 0:02:00.5]} 9... cxd4 {[%clk
0:02:16.4]} 10. Nxg6 {[%clk 0:01:59]} 10... fxg6 {[%clk 0:02:17.3]} 11. Bd3
{[%clk 0:01:57.7]} 11... Ne7 {[%clk 0:02:16.7]} 12. Bg5 {[%clk 0:01:30.6]} 12...
Nf5 {[%clk 0:02:14.8]} 13. O-O {[%clk 0:01:25]} 13... Nc6 {[%clk 0:02:11.6]} 14.
Qe2 {[%clk 0:01:19.5]} 14... Be7 {[%clk 0:02:02.1]} 15. Rfe1 {[%clk 0:00:44]}
15... Bxg5 {[%clk 0:01:49.6]} 16. hxg5 {[%clk 0:00:43.8]} 16... O-O-O {[%clk
0:01:48.1]} 17. b4 {[%clk 0:00:36.9]} 17... Nxb4 {[%clk 0:01:33.9]} 18. Rab1
{[%clk 0:00:36]} 18... Qc5 {[%clk 0:01:12.7]} 19. Nxf5 {[%clk 0:00:27.8]} 19...
gxf5 {[%clk 0:01:10]} 20. a3 {[%clk 0:00:16.5]} 20... Na2 {[%clk 0:00:53.6]} 21.
Ba6 {[%clk 0:00:14]} 21... Nc3 {[%clk 0:00:37.8]} 22. Bxb7+ {[%clk 0:00:10.9]}
22... Kc7 {[%clk 0:00:36.3]} 23. Qa6 {[%clk 0:00:11.4]} 23... Nxb1 {[%clk
0:00:35.2]} 24. Rxb1 {[%clk 0:00:12.1]} 24... Rhe8 {[%clk 0:00:17.3]} 25. Bc6
{[%clk 0:00:10.9]} 25... Qxc6 {[%clk 0:00:12.8]} 26. Qxa7+ {[%clk 0:00:10.8]}
1-0

[Event "*** Titled Tuesday Blitz"]
[Site "Chess.com"]
[Date "2020.10.27"]
[Round "3"]
[White "pedro_nascimento85"]
[Black "Mimsychess"]
[Result "0-1"]
[WhiteElo "2002"]
[BlackElo "2320"]
[TimeControl "180+1"]
[EndTime "10:27:48 PDT"]
[Termination "Mimsychess won on time"]

1. d4 {[%clk 0:03:00.9]} 1... Nf6 {[%clk 0:02:58.6]} 2. c4 {[%clk 0:02:59.5]}
2... g6 {[%clk 0:02:58.7]} 3. Nc3 {[%clk 0:02:57.8]} 3... Bg7 {[%clk 0:02:58.6]}
4. e4 {[%clk 0:02:57.4]} 4... d6 {[%clk 0:02:58.1]} 5. Be2 {[%clk 0:02:57.4]}
5... O-O {[%clk 0:02:57.6]} 6. Nf3 {[%clk 0:02:56.9]} 6... e5 {[%clk 0:02:54]}
7. d5 {[%clk 0:02:56.2]} 7... Na6 {[%clk 0:02:45.8]} 8. Bg5 {[%clk 0:02:53.6]}
8... h6 {[%clk 0:02:41.5]} 9. Bh4 {[%clk 0:02:47.3]} 9... Bd7 {[%clk 0:02:30.6]}
10. Nd2 {[%clk 0:02:44.3]} 10... c6 {[%clk 0:02:27.8]} 11. O-O {[%clk
0:02:36.5]} 11... cxd5 {[%clk 0:02:15.2]} 12. cxd5 {[%clk 0:02:30.9]} 12... Qe8
{[%clk 0:02:13.9]} 13. a3 {[%clk 0:02:20.7]} 13... Rc8 {[%clk 0:02:11.7]} 14.
Rc1 {[%clk 0:02:18.2]} 14... Nh5 {[%clk 0:02:00.9]} 15. b4 {[%clk 0:02:12.2]}
15... Nf4 {[%clk 0:02:00.3]} 16. Re1 {[%clk 0:01:28.5]} 16... f5 {[%clk
0:01:49.9]} 17. f3 {[%clk 0:01:26.1]} 17... g5 {[%clk 0:01:37.4]} 18. Bf2 {[%clk
0:01:25.5]} 18... Qg6 {[%clk 0:01:33.7]} 19. Bf1 {[%clk 0:01:19.1]} 19... g4
{[%clk 0:01:32.7]} 20. Nb3 {[%clk 0:00:58.9]} 20... Rc7 {[%clk 0:01:16.8]} 21.
Bxa7 {[%clk 0:00:47.6]} 21... Rfc8 {[%clk 0:01:15.4]} 22. Na2 {[%clk 0:00:42.6]}
22... gxf3 {[%clk 0:01:10.3]} 23. Qxf3 {[%clk 0:00:33.5]} 23... fxe4 {[%clk
0:01:05.4]} 24. Qxe4 {[%clk 0:00:33]} 24... Nh3+ {[%clk 0:01:04.1]} 25. Kh1
{[%clk 0:00:29.4]} 25... Bf5 {[%clk 0:01:04.1]} 26. Qe2 {[%clk 0:00:20.4]} 26...
Rxc1 {[%clk 0:01:01]} 27. Nbxc1 {[%clk 0:00:18.4]} 27... Rc2 {[%clk 0:00:57.5]}
28. Qf3 {[%clk 0:00:13.6]} 28... Nf4 {[%clk 0:00:47.1]} 29. g3 {[%clk
0:00:11.6]} 29... Bg4 {[%clk 0:00:41.7]} 30. Qe3 {[%clk 0:00:06.3]} 30... Qh5
{[%clk 0:00:37.5]} 31. Be2 {[%clk 0:00:03.5]} 31... Nxe2 {[%clk 0:00:35.2]} 32.
Nxe2 {[%clk 0:00:02.6]} 32... Bxe2 {[%clk 0:00:30.9]} 0-1

[Event "*** Titled Tuesday Blitz"]
[Site "Chess.com"]
[Date "2020.10.27"]
[Round "3"]
[White "talman67"]
[Black "PavelChernomordik"]
[Result "1-0"]
[WhiteElo "2538"]
[BlackElo "2288"]
[TimeControl "180+1"]
[EndTime "10:27:49 PDT"]
[Termination "talman67 won by resignation"]

1. e4 {[%clk 0:03:00.5]} 1... g6 {[%clk 0:03:00.9]} 2. d4 {[%clk 0:03:00.7]}
2... Bg7 {[%clk 0:02:59.5]} 3. Nc3 {[%clk 0:03:01.3]} 3... d6 {[%clk 0:02:57.6]}
4. Be3 {[%clk 0:03:01.3]} 4... a6 {[%clk 0:02:55.9]} 5. Qd2 {[%clk 0:03:01.2]}
5... b5 {[%clk 0:02:54.8]} 6. f3 {[%clk 0:02:56.2]} 6... Nd7 {[%clk 0:02:50.8]}
7. h4 {[%clk 0:02:55.6]} 7... h6 {[%clk 0:02:48.3]} 8. O-O-O {[%clk 0:02:47.1]}
8... Nb6 {[%clk 0:02:41.7]} 9. g4 {[%clk 0:02:40.1]} 9... e6 {[%clk 0:02:33.2]}
10. a3 {[%clk 0:02:39]} 10... Bb7 {[%clk 0:02:30.7]} 11. Nh3 {[%clk 0:02:38.6]}
11... Qd7 {[%clk 0:02:22.6]} 12. Kb1 {[%clk 0:02:38.4]} 12... Ne7 {[%clk
0:02:19.5]} 13. h5 {[%clk 0:01:54.7]} 13... g5 {[%clk 0:02:15.8]} 14. f4 {[%clk
0:01:54.7]} 14... gxf4 {[%clk 0:02:13.1]} 15. Nxf4 {[%clk 0:01:55.6]} 15...
O-O-O {[%clk 0:02:05.6]} 16. d5 {[%clk 0:01:49.9]} 16... Nc4 {[%clk 0:01:52.8]}
17. Bxc4 {[%clk 0:01:47.2]} 17... bxc4 {[%clk 0:01:52.8]} 18. Qe2 {[%clk
0:01:39.7]} 18... exd5 {[%clk 0:01:38.3]} 19. Nfxd5 {[%clk 0:01:35.9]} 19...
Nxd5 {[%clk 0:01:30.2]} 20. Nxd5 {[%clk 0:01:32.8]} 20... Qb5 {[%clk 0:01:23.2]}
21. Bd4 {[%clk 0:01:28.5]} 21... Be5 {[%clk 0:01:14.6]} 22. Nc3 {[%clk
0:01:15.5]} 22... Qc6 {[%clk 0:01:07.8]} 23. Rhf1 {[%clk 0:01:10.5]} 23... f6
{[%clk 0:00:57.6]} 24. Rxf6 {[%clk 0:01:10.9]} 24... Bxf6 {[%clk 0:00:50.5]} 25.
Bxf6 {[%clk 0:01:11.8]} 25... Rhe8 {[%clk 0:00:45.3]} 26. Bxd8 {[%clk
0:01:10.8]} 26... Kxd8 {[%clk 0:00:43.9]} 27. Rd4 {[%clk 0:01:11.6]} 27... Qb6
{[%clk 0:00:33.8]} 28. Rxc4 {[%clk 0:01:06.2]} 28... Qg1+ {[%clk 0:00:33.2]} 29.
Ka2 {[%clk 0:01:05.4]} 29... Rg8 {[%clk 0:00:25.5]} 30. e5 {[%clk 0:01:02.3]}
30... d5 {[%clk 0:00:22]} 31. Rb4 {[%clk 0:00:51.6]} 31... Kc8 {[%clk
0:00:18.7]} 32. e6 {[%clk 0:00:46.6]} 32... d4 {[%clk 0:00:13.6]} 33. e7 {[%clk
0:00:45.3]} 33... Bc6 {[%clk 0:00:07.4]} 34. Qe6+ {[%clk 0:00:42]} 1-0

[Event "*** Titled Tuesday Blitz"]
[Site "Chess.com"]
[Date "2020.10.27"]
[Round "3"]
[White "BlackBoarder"]
[Black "Qvalda"]
[Result "1-0"]
[WhiteElo "2609"]
[BlackElo "2396"]
[TimeControl "180+1"]
[EndTime "10:27:52 PDT"]
[Termination "BlackBoarder won by checkmate"]

1. e4 {[%clk 0:03:00.9]} 1... g6 {[%clk 0:02:49.7]} 2. d4 {[%clk 0:03:00.6]}
2... Bg7 {[%clk 0:02:49.9]} 3. Nc3 {[%clk 0:02:59.7]} 3... d6 {[%clk 0:02:48.5]}
4. Be2 {[%clk 0:03:00]} 4... a6 {[%clk 0:02:45.5]} 5. a4 {[%clk 0:02:59.8]} 5...
b6 {[%clk 0:02:45.1]} 6. h4 {[%clk 0:02:58.9]} 6... h6 {[%clk 0:02:45.1]} 7. h5
{[%clk 0:02:58.5]} 7... g5 {[%clk 0:02:45.1]} 8. f4 {[%clk 0:02:58.9]} 8... gxf4
{[%clk 0:02:45.1]} 9. Bxf4 {[%clk 0:02:59.8]} 9... Bb7 {[%clk 0:02:43.9]} 10.
Nf3 {[%clk 0:03:00.2]} 10... Nd7 {[%clk 0:02:43.9]} 11. Nh4 {[%clk 0:02:52.6]}
11... e5 {[%clk 0:02:41.5]} 12. Nf5 {[%clk 0:02:51.1]} 12... Bf6 {[%clk
0:02:41.6]} 13. Be3 {[%clk 0:02:49.5]} 13... Bg5 {[%clk 0:02:38.3]} 14. d5
{[%clk 0:02:44]} 14... Bxe3 {[%clk 0:02:30.1]} 15. Nxe3 {[%clk 0:02:43.6]} 15...
Qg5 {[%clk 0:02:30.4]} 16. Nf5 {[%clk 0:02:27.7]} 16... O-O-O {[%clk 0:02:14.9]}
17. Qd2 {[%clk 0:02:09.5]} 17... Qxd2+ {[%clk 0:01:29.5]} 18. Kxd2 {[%clk
0:02:10.4]} 18... Re8 {[%clk 0:01:29.7]} 19. Raf1 {[%clk 0:02:06.2]} 19... f6
{[%clk 0:01:25.1]} 20. Bg4 {[%clk 0:01:55.2]} 20... Kd8 {[%clk 0:01:25.4]} 21.
Ng7 {[%clk 0:01:52.9]} 21... Re7 {[%clk 0:01:22.4]} 22. Ne6+ {[%clk 0:01:52.6]}
22... Kc8 {[%clk 0:01:21.8]} 23. Nf8 {[%clk 0:01:50]} 23... f5 {[%clk
0:01:06.3]} 24. Rxf5 {[%clk 0:01:40.7]} 24... Rg7 {[%clk 0:00:42.9]} 25. Ng6
{[%clk 0:01:33.9]} 25... Ne7 {[%clk 0:00:36.6]} 26. Nxh8 {[%clk 0:01:28.5]}
26... Rxg4 {[%clk 0:00:34.2]} 27. Rf7 {[%clk 0:01:24.8]} 27... Rxg2+ {[%clk
0:00:34.1]} 28. Ke3 {[%clk 0:01:19.3]} 28... Kd8 {[%clk 0:00:25.7]} 29. Rhf1
{[%clk 0:01:11.3]} 29... Rg8 {[%clk 0:00:22.9]} 30. Rh7 {[%clk 0:01:02.5]} 30...
c6 {[%clk 0:00:20.5]} 31. Nf7+ {[%clk 0:00:59.2]} 31... Kc7 {[%clk 0:00:19.2]}
32. Nxh6 {[%clk 0:00:58.2]} 32... Re8 {[%clk 0:00:03.5]} 33. Rff7 {[%clk
0:00:57.4]} 33... Kd8 {[%clk 0:00:03.8]} 34. dxc6 {[%clk 0:00:53.9]} 34... Bxc6
{[%clk 0:00:04.3]} 35. Rfg7 {[%clk 0:00:39.1]} 35... Nc8 {[%clk 0:00:03.9]} 36.
Nd5 {[%clk 0:00:32.3]} 36... b5 {[%clk 0:00:03]} 37. Nf7# {[%clk 0:00:31.9]} 1-0

[Event "*** Titled Tuesday Blitz"]
[Site "Chess.com"]
[Date "2020.10.27"]
[Round "3"]
[White "Vandros57"]
[Black "WanderingPuppet"]
[Result "0-1"]
[WhiteElo "2207"]
[BlackElo "2504"]
[TimeControl "180+1"]
[EndTime "10:27:52 PDT"]
[Termination "WanderingPuppet won on time"]

1. d4 {[%clk 0:02:52.9]} 1... Nf6 {[%clk 0:02:58.4]} 2. Nf3 {[%clk 0:02:51.9]}
2... g6 {[%clk 0:02:55.8]} 3. c4 {[%clk 0:02:51]} 3... Bg7 {[%clk 0:02:56.2]} 4.
Nc3 {[%clk 0:02:50.4]} 4... O-O {[%clk 0:02:56.8]} 5. e4 {[%clk 0:02:50.1]} 5...
d6 {[%clk 0:02:56.4]} 6. Be2 {[%clk 0:02:49.7]} 6... Nbd7 {[%clk 0:02:56.4]} 7.
O-O {[%clk 0:02:43]} 7... e5 {[%clk 0:02:56.1]} 8. Qc2 {[%clk 0:02:41.4]} 8...
Re8 {[%clk 0:02:53.4]} 9. Rd1 {[%clk 0:02:39.9]} 9... a6 {[%clk 0:02:47.8]} 10.
dxe5 {[%clk 0:02:37.9]} 10... dxe5 {[%clk 0:02:44.8]} 11. h3 {[%clk 0:02:29.7]}
11... h6 {[%clk 0:02:36.9]} 12. Be3 {[%clk 0:02:28.1]} 12... Kh7 {[%clk
0:02:30.5]} 13. Nd5 {[%clk 0:02:26.2]} 13... c6 {[%clk 0:02:25.8]} 14. Nb6
{[%clk 0:02:17.3]} 14... Rb8 {[%clk 0:02:25.1]} 15. c5 {[%clk 0:01:59.1]} 15...
Qe7 {[%clk 0:02:21.6]} 16. Nxd7 {[%clk 0:01:56.3]} 16... Bxd7 {[%clk 0:02:17.8]}
17. b4 {[%clk 0:01:53.1]} 17... Nh5 {[%clk 0:02:13.1]} 18. Bc4 {[%clk
0:01:43.1]} 18... Be6 {[%clk 0:02:09.4]} 19. a4 {[%clk 0:01:39]} 19... Nf4
{[%clk 0:02:07.7]} 20. Bxf4 {[%clk 0:01:38]} 20... exf4 {[%clk 0:02:08.6]} 21.
e5 {[%clk 0:01:36.1]} 21... Bf5 {[%clk 0:01:46.8]} 22. Qc3 {[%clk 0:01:32.7]}
22... a5 {[%clk 0:01:32.6]} 23. Rd6 {[%clk 0:01:18.6]} 23... Be4 {[%clk
0:01:10.5]} 24. Re1 {[%clk 0:01:13.8]} 24... axb4 {[%clk 0:01:01.9]} 25. Qxb4
{[%clk 0:01:08.9]} 25... Bxf3 {[%clk 0:01:01.5]} 26. gxf3 {[%clk 0:01:08]} 26...
Bxe5 {[%clk 0:01:01.6]} 27. Bf1 {[%clk 0:00:52.1]} 27... Qg5+ {[%clk 0:00:59.1]}
28. Kh2 {[%clk 0:00:42.3]} 28... Bxd6 {[%clk 0:00:57.2]} 29. cxd6 {[%clk
0:00:40.2]} 29... Rxe1 {[%clk 0:00:53]} 30. Qxe1 {[%clk 0:00:39.3]} 30... Rd8
{[%clk 0:00:47.3]} 31. Qb4 {[%clk 0:00:23.3]} 31... Rd7 {[%clk 0:00:35.1]} 32.
Bc4 {[%clk 0:00:16]} 32... Qe5 {[%clk 0:00:30.9]} 33. Qb3 {[%clk 0:00:13.8]}
33... Kg7 {[%clk 0:00:29.4]} 34. a5 {[%clk 0:00:06.6]} 34... Qxd6 {[%clk
0:00:27.3]} 35. Qb2+ {[%clk 0:00:04.5]} 35... Qf6 {[%clk 0:00:27]} 0-1